{"text_format":"1","workbook":"xlsx","n_sheets":2,"sheets":["Mark All","Moncer"],"not_rendered":{"charts":0,"images":10,"macros":1,"external_links":0,"defined_names":7,"comments":0,"pivot_tables":0},"unopened":[],"bounds":{"document_bytes":16777216,"sheet_cells":100000,"rows_first":2000,"rows_last":500,"rows_between":2000,"halvings":0,"cell_chars":16384,"cell_head_chars":4096},"cells_cut":0,"cells_raw":0,"read":"whole","date_system":"1900"}

{"sheet":"Mark All","index":0,"n_rows":71,"n_cols":187,"rows_kept":71,"cut":false,"hidden":false,"merged":[[4,35,4,45],[4,170,4,180],[4,159,4,169],[4,148,4,158],[4,46,4,78],[4,126,4,136],[4,79,4,125],[4,137,4,147],[4,0,7,0],[4,1,7,1],[4,2,4,12],[4,13,4,23],[4,24,4,34],[6,13,6,17],[6,18,6,23],[6,24,6,28],[6,29,6,34],[6,51,6,55],[6,56,6,60],[6,61,6,65],[6,66,6,70],[5,76,7,76],[5,78,7,78],[5,77,7,77],[5,56,5,65],[5,66,5,75],[5,79,5,89],[5,148,5,158],[6,175,6,180],[6,159,6,163],[6,164,6,169],[6,148,6,152],[6,153,6,158],[5,125,7,125],[5,112,5,122],[5,126,5,136],[5,137,5,147],[6,112,6,116],[6,137,6,141],[5,159,5,169],[5,186,7,186],[6,2,6,6],[6,7,6,12],[6,184,7,184],[6,185,7,185],[5,90,5,100],[5,101,5,111],[6,142,6,147],[6,101,6,105],[6,106,6,111],[6,117,6,122],[6,126,6,130],[6,170,6,174],[5,123,7,123],[5,124,7,124],[5,2,5,12],[5,13,5,23],[5,24,5,34],[5,35,5,45],[5,46,5,55],[6,35,6,39],[1,181,1,183],[6,40,6,45],[6,46,6,50],[5,181,7,181],[5,182,7,182],[5,183,5,185],[6,71,6,75],[6,79,6,83],[6,84,6,89],[6,90,6,94],[6,183,7,183],[6,95,6,100],[6,131,6,136],[4,181,4,186],[5,170,5,180]]}
[1,2,3,4,5,6,7,8,9,10,11,12,13,14,15,16,17,18,19,20,21,22,23,24,25,26,27,28,29,30,31,32,33,34,35,36,37,38,39,40,41,42,43,44,45,46,47,48,49,50,51,52,53,54,55,56,57,58,59,60,61,62,63,64,65,66,67,68,69,70,71,72,73,74,75,76,77,78,79,80,81,82,83,84,85,86,87,88,89,90,91,92,93,94,95,96,97,98,99,100,101,102,103,104,105,106,107,108,109,110,111,112,113,114,115,116,117,118,119,120,121,122,123,124,125,126,127,128,129,130,131,132,133,134,135,136,137,138,139,140,141,142,143,144,145,146,147,148,149,150,151,152,153,154,155,156,157,158,159,160,161,162,163,164,165,166,167,168,169,170,171,172,173,174,175,176,177,178,179,180,181,182,183,184,185,186,187]
[null,"ALL"]
[]
[null,"النهاية العظمى ",20,20,20,40,100,20,20,20,40,200,100]
["الرقم","الاسم","التربية الإسلامية ",null,null,null,null,null,null,null,null,null,null,"العربية لغتي ",null,null,null,null,null,null,null,null,null,null,"اللغة الإنجليزية",null,null,null,null,null,null,null,null,null,null,"الرياضيات",null,null,null,null,null,null,null,null,null,null,"الدراسات الاجتماعية ",null,null,null,null,null,null,null,null,null,null,null,null,null,null,null,null,null,null,null,null,null,null,null,null,null,null,null,null,null,null,null,null,"العلوم",null,null,null,null,null,null,null,null,null,null,null,null,null,null,null,null,null,null,null,null,null,null,null,null,null,null,null,null,null,null,null,null,null,null,null,null,null,null,null,null,null,null,null,null,null,null,"التربية الفنية",null,null,null,null,null,null,null,null,null,null,"التربية الرياضية",null,null,null,null,null,null,null,null,null,null,"الحاسوب المهارات الرقمية ",null,null,null,null,null,null,null,null,null,null,"الثقافة المالية ",null,null,null,null,null,null,null,null,null,null,"اللغة الفرنسية ",null,null,null,null,null,null,null,null,null,null,"الأسماء "]
[null,null,1,null,null,null,null,null,null,null,null,null,null,2,null,null,null,null,null,null,null,null,null,null,3,null,null,null,null,null,null,null,null,null,null,4,null,null,null,null,null,null,null,null,null,null,"التاريخ",null,null,null,null,null,null,null,null,null,"الجغرافيا",null,null,null,null,null,null,null,null,null,"التربية الوطنية و المدنية ",null,null,null,null,null,null,null,null,null,"مجموع فصل اول","مجموع فصل ثاني","معدل","الفيزياء",null,null,null,null,null,null,null,null,null,null,"العلوم الحياتية",null,null,null,null,null,null,null,null,null,null,"الكيمياء",null,null,null,null,null,null,null,null,null,null,"علوم الارض و البيئة ",null,null,null,null,null,null,null,null,null,null,"مجموع الفصل الاول","مجموع الفصل الاول","معدل",12,null,null,null,null,null,null,null,null,null,null,13,null,null,null,null,null,null,null,null,null,null,14,null,null,null,null,null,null,null,null,null,null,15,null,null,null,null,null,null,null,null,null,null,16,null,null,null,null,null,null,null,null,null,null,"الجنـسيـة","مكـان الـولادة","تاريخ الولادة",null,null,"الرقم الوطني"]
[null,null,"فصل اول",null,null,null,null,"فصل ثاني",null,null,null,null,null,"فصل اول",null,null,null,null,"فصل ثاني",null,null,null,null,null,"فصل اول",null,null,null,null,"فصل ثاني",null,null,null,null,null,"فصل اول",null,null,null,null,"فصل ثاني",null,null,null,null,null,"فصل اول",null,null,null,null,"فصل ثاني",null,null,null,null,"فصل اول",null,null,null,null,"فصل ثاني",null,null,null,null,"فصل اول",null,null,null,null,"فصل ثاني",null,null,null,null,null,null,null,"فصل اول",null,null,null,null,"فصل ثاني",null,null,null,null,null,"فصل اول",null,null,null,null,"فصل ثاني",null,null,null,null,null,"فصل اول",null,null,null,null,"فصل ثاني",null,null,null,null,null,"فصل اول",null,null,null,null,"فصل ثاني",null,null,null,null,null,null,null,null,"فصل اول",null,null,null,null,"فصل ثاني",null,null,null,null,null,"فصل اول",null,null,null,null,"فصل ثاني",null,null,null,null,null,"فصل اول",null,null,null,null,"فصل ثاني",null,null,null,null,null,"فصل اول",null,null,null,null,"فصل ثاني",null,null,null,null,null,"فصل اول",null,null,null,null,"فصل ثاني",null,null,null,null,null,null,null,"الـيـوم","الـشـهـر","الــسـنـة"]
[null,null,"التقويم الاول","التقويم الثاني","التقويم الثالث ","التقويم الرابع","مجموع","التقويم الاول","التقويم الثاني","التقويم الثالث ","التقويم الرابع","مجموع","معدل","التقويم الاول","التقويم الثاني","التقويم الثالث ","التقويم الرابع","مجموع","التقويم الاول","التقويم الثاني","التقويم الثالث ","التقويم الرابع","مجموع","معدل","التقويم الاول","التقويم الثاني","التقويم الثالث ","التقويم الرابع","مجموع","التقويم الاول","التقويم الثاني","التقويم الثالث ","التقويم الرابع","مجموع","معدل","التقويم الاول","التقويم الثاني","التقويم الثالث ","التقويم الرابع","مجموع","التقويم الاول","التقويم الثاني","التقويم الثالث ","التقويم الرابع","مجموع","معدل","التقويم الاول","التقويم الثاني","التقويم الثالث ","التقويم الرابع","مجموع","التقويم الاول","التقويم الثاني","التقويم الثالث ","التقويم الرابع","مجموع","التقويم الاول","التقويم الثاني","التقويم الثالث ","التقويم الرابع","مجموع","التقويم الاول","التقويم الثاني","التقويم الثالث ","التقويم الرابع","مجموع","التقويم الاول","التقويم الثاني","التقويم الثالث ","التقويم الرابع","مجموع","التقويم الاول","التقويم الثاني","التقويم الثالث ","التقويم الرابع","مجموع",null,null,null,"التقويم الاول","التقويم الثاني","التقويم الثالث ","التقويم الرابع","مجموع","التقويم الاول","التقويم الثاني","التقويم الثالث ","التقويم الرابع","مجموع","معدل","التقويم الاول","التقويم الثاني","التقويم الثالث ","التقويم الرابع","مجموع","التقويم الاول","التقويم الثاني","التقويم الثالث ","التقويم الرابع","مجموع","معدل","التقويم الاول","التقويم الثاني","التقويم الثالث ","التقويم الرابع","مجموع","التقويم الاول","التقويم الثاني","التقويم الثالث ","التقويم الرابع","مجموع","معدل","التقويم الاول","التقويم الثاني","التقويم الثالث ","التقويم الرابع","مجموع","التقويم الاول","التقويم الثاني","التقويم الثالث ","التقويم الرابع","مجموع","معدل",null,null,null,"التقويم الاول","التقويم الثاني","التقويم الثالث ","التقويم الرابع","مجموع","التقويم الاول","التقويم الثاني","التقويم الثالث ","التقويم الرابع","مجموع","معدل","التقويم الاول","التقويم الثاني","التقويم الثالث ","التقويم الرابع","مجموع","التقويم الاول","التقويم الثاني","التقويم الثالث ","التقويم الرابع","مجموع","معدل","التقويم الاول","التقويم الثاني","التقويم الثالث ","التقويم الرابع","مجموع","التقويم الاول","التقويم الثاني","التقويم الثالث ","التقويم الرابع","مجموع","معدل","التقويم الاول","التقويم الثاني","التقويم الثالث ","التقويم الرابع","مجموع","التقويم الاول","التقويم الثاني","التقويم الثالث ","التقويم الرابع","مجموع","معدل","التقويم الاول","التقويم الثاني","التقويم الثالث ","التقويم الرابع","مجموع","التقويم الاول","التقويم الثاني","التقويم الثالث ","التقويم الرابع","مجموع","معدل"]
[1,"محمد",20,20,20,40,{"$f":"IF(COUNT(C9:F9)>3,SUM(C9:F9),\"\")","v":100},20,20,20,40,{"$f":"IF(COUNT(H9:K9)>3,SUM(H9:K9),\"\")","v":100},{"$f":"IF(COUNT(G9,L9)>1,ROUND((G9+L9)/2,0),\"\")","v":100},15,16,18,14,{"$f":"IF(COUNT(N9:Q9)>3,SUM(N9:Q9),\"\")","v":63},20,15,14,16,{"$f":"IF(COUNT(S9:V9)>3,SUM(S9:V9),\"\")","v":65},{"$f":"IF(COUNT(R9,W9)>1,ROUND((R9+W9)/2,0),\"\")","v":64},15,14,12,11,{"$f":"IF(COUNT(Y9:AB9)>3,SUM(Y9:AB9),\"\")","v":52},11,11,12,15,{"$f":"IF(COUNT(AD9:AG9)>3,SUM(AD9:AG9),\"\")","v":49},{"$f":"IF(COUNT(AC9,AH9)>1,ROUND((AC9+AH9)/2,0),\"\")","v":51},null,null,null,null,{"$f":"IF(COUNT(AJ9:AM9)>3,SUM(AJ9:AM9),\"\")","v":""},null,null,null,null,{"$f":"IF(COUNT(AO9:AR9)>3,SUM(AO9:AR9),\"\")","v":""},{"$f":"IF(COUNT(AN9,AS9)>1,ROUND((AN9+AS9)/2,0),\"\")","v":""},null,null,null,null,{"$f":"IF(COUNT(AU9:AX9)>3,SUM(AU9:AX9),\"\")","v":""},null,null,null,null,{"$f":"IF(COUNT(AZ9:BC9)>3,SUM(AZ9:BC9),\"\")","v":""},null,null,null,null,{"$f":"IF(COUNT(BE9:BH9)>3,SUM(BE9:BH9),\"\")","v":""},null,null,null,null,{"$f":"IF(COUNT(BJ9:BM9)>3,SUM(BJ9:BM9),\"\")","v":""},null,null,null,null,{"$f":"IF(COUNT(BO9:BR9)>3,SUM(BO9:BR9),\"\")","v":""},null,null,null,null,{"$f":"IF(COUNT(BT9:BW9)>3,SUM(BT9:BW9),\"\")","v":""},{"$f":"IFERROR(ROUND(((AY9+BI9+BS9)*2)/3,0),\"\")","v":""},{"$f":"IFERROR(ROUND(((BD9+BN9+BX9)*2)/3,0),\"\")","v":""},{"$f":"IFERROR(ROUND((BY9+BZ9)/2,0),\"\")","v":""},null,null,null,null,{"$f":"IF(COUNT(CB9:CE9)>3,SUM(CB9:CE9),\"\")","v":""},null,null,null,null,{"$f":"IF(COUNT(CG9:CJ9)>3,SUM(CG9:CJ9),\"\")","v":""},{"$f":"IF(COUNT(CF9,CK9)>1,ROUND((CF9+CK9)/2,0),\"\")","v":""},null,null,null,null,{"$f":"IF(COUNT(CM9:CP9)>3,SUM(CM9:CP9),\"\")","v":""},null,null,null,null,{"$f":"IF(COUNT(CR9:CU9)>3,SUM(CR9:CU9),\"\")","v":""},{"$f":"IF(COUNT(CQ9,CV9)>1,ROUND((CQ9+CV9)/2,0),\"\")","v":""},null,null,null,null,{"$f":"IF(COUNT(CX9:DA9)>3,SUM(CX9:DA9),\"\")","v":""},null,null,null,null,{"$f":"IF(COUNT(DC9:DF9)>3,SUM(DC9:DF9),\"\")","v":""},{"$f":"IF(COUNT(DB9,DG9)>1,ROUND((DB9+DG9)/2,0),\"\")","v":""},null,null,null,null,{"$f":"IF(COUNT(DI9:DL9)>3,SUM(DI9:DL9),\"\")","v":""},null,null,null,null,{"$f":"IF(COUNT(DN9:DQ9)>3,SUM(DN9:DQ9),\"\")","v":""},{"$f":"IF(COUNT(DM9,DR9)>1,ROUND((DM9+DR9)/2,0),\"\")","v":""},{"$f":"IFERROR(ROUND((CF9+CQ9+DB9+DM9),0),\"\")","v":""},{"$f":"IFERROR(ROUND((CK9+CV9+DG9+DR9),0),\"\")","v":""},{"$f":"IFERROR(ROUND((CL9+CW9+DH9+DS9),0),\"\")","v":""},null,null,null,null,{"$f":"IF(COUNT(DW9:DZ9)>3,SUM(DW9:DZ9),\"\")","v":""},null,null,null,null,{"$f":"IF(COUNT(EB9:EE9)>3,SUM(EB9:EE9),\"\")","v":""},{"$f":"IF(COUNT(EA9,EF9)>1,ROUND((EA9+EF9)/2,0),\"\")","v":""},null,null,null,null,{"$f":"IF(COUNT(EH9:EK9)>3,SUM(EH9:EK9),\"\")","v":""},null,null,null,null,{"$f":"IF(COUNT(EM9:EP9)>3,SUM(EM9:EP9),\"\")","v":""},{"$f":"IF(COUNT(EL9,EQ9)>1,ROUND((EL9+EQ9)/2,0),\"\")","v":""},null,null,null,null,{"$f":"IF(COUNT(ES9:EV9)>3,SUM(ES9:EV9),\"\")","v":""},null,null,null,null,{"$f":"IF(COUNT(EX9:FA9)>3,SUM(EX9:FA9),\"\")","v":""},{"$f":"IF(COUNT(EW9,FB9)>1,ROUND((EW9+FB9)/2,0),\"\")","v":""},null,null,null,null,{"$f":"IF(COUNT(FD9:FG9)>3,SUM(FD9:FG9),\"\")","v":""},null,null,null,null,{"$f":"IF(COUNT(FI9:FL9)>3,SUM(FI9:FL9),\"\")","v":""},{"$f":"IF(COUNT(FH9,FM9)>1,ROUND((FH9+FM9)/2,0),\"\")","v":""},null,null,null,null,{"$f":"IF(COUNT(FO9:FR9)>3,SUM(FO9:FR9),\"\")","v":""},null,null,null,null,{"$f":"IF(COUNT(FT9:FW9)>3,SUM(FT9:FW9),\"\")","v":""},{"$f":"IF(COUNT(FS9,FX9)>1,ROUND((FS9+FX9)/2,0),\"\")","v":""}]
[2,null,null,null,null,null,"",null,null,null,null,{"$f":"IF(COUNT(H10:K10)>3,SUM(H10:K10),\"\")","v":""},{"$f":"IF(COUNT(G10,L10)>1,ROUND((G10+L10)/2,0),\"\")","v":""},null,null,null,null,"",null,null,null,null,{"$f":"IF(COUNT(S10:V10)>3,SUM(S10:V10),\"\")","v":""},{"$f":"IF(COUNT(R10,W10)>1,ROUND((R10+W10)/2,0),\"\")","v":""},null,null,null,null,"",null,null,null,null,"","",null,null,null,null,"",null,null,null,null,"","",null,null,null,null,"",null,null,null,null,"",null,null,null,null,"",null,null,null,null,"",null,null,null,null,"",null,null,null,null,"",{"$f":"IFERROR(ROUND(((AY10+BI10+BS10)*2)/3,0),\"\")","v":""},{"$f":"IFERROR(ROUND(((BD10+BN10+BX10)*2)/3,0),\"\")","v":""},{"$f":"IFERROR(ROUND((BY10+BZ10)/2,0),\"\")","v":""},null,null,null,null,"",null,null,null,null,"","",null,null,null,null,"",null,null,null,null,{"$f":"IF(COUNT(CR10:CU10)>3,SUM(CR10:CU10),\"\")","v":""},{"$f":"IF(COUNT(CQ10,CV10)>1,ROUND((CQ10+CV10)/2,0),\"\")","v":""},null,null,null,null,"",null,null,null,null,{"$f":"IF(COUNT(DC10:DF10)>3,SUM(DC10:DF10),\"\")","v":""},{"$f":"IF(COUNT(DB10,DG10)>1,ROUND((DB10+DG10)/2,0),\"\")","v":""},null,null,null,null,"",null,null,null,null,"","",{"$f":"IFERROR(ROUND((CF10+CQ10+DB10+DM10),0),\"\")","v":""},{"$f":"IFERROR(ROUND((CK10+CV10+DG10+DR10),0),\"\")","v":""},{"$f":"IFERROR(ROUND((CL10+CW10+DH10+DS10),0),\"\")","v":""},null,null,null,null,"",null,null,null,null,"","",null,null,null,null,"",null,null,null,null,"","",null,null,null,null,{"$f":"IF(COUNT(ES10:EV10)>3,SUM(ES10:EV10),\"\")","v":""},null,null,null,null,{"$f":"IF(COUNT(EX10:FA10)>3,SUM(EX10:FA10),\"\")","v":""},{"$f":"IF(COUNT(EW10,FB10)>1,ROUND((EW10+FB10)/2,0),\"\")","v":""}]
[3," ",null," ",null,null,"",null,null,null,null,"","",null,null,null,null,"",null,null,null,null,"","",null,null,null,null,"",null,null,null,null,"","",null,null,null,null,"",null,null,null,null,"","",null,null,null,null,"",null,null,null,null,"",null,null,null,null,"",null,null,null,null,"",null,null,null,null,"",null,null,null,null,"","","","",null,null,null,null,"",null,null,null,null,"","",null,null,null,null,"",null,null,null,null,"","",null,null,null,null,"",null,null,null,null,"","",null,null,null,null,"",null,null,null,null,"","","","","",null,null,null,null,"",null,null,null,null,"","",null,null,null,null,"",null,null,null,null,"","",null,null,null,null,"",null,null,null,null,"",""]
[4,null,null,null,null,null,"",null,null,null,null,"","",null,null,null,null,"",null,null,null,null,"","",null,null,null,null,"",null,null,null,null,"","",null,null,null,null,"",null,null,null,null,"","",null,null,null,null,"",null,null,null,null,"",null,null,null,null,"",null,null,null,null,"",null,null,null,null,"",null,null,null,null,"","","","",null,null,null,null,"",null,null,null,null,"","",null,null,null,null,"",null,null,null,null,"","",null,null,null,null,"",null,null,null,null,"","",null,null,null,null,"",null,null,null,null,"","","","","",null,null,null,null,"",null,null,null,null,"","",null,null,null,null,"",null,null,null,null,"","",null,null,null,null,"",null,null,null,null,"",""]
[5,null,null,null,null,null,"",null,null,null,null,"","",null,null,null,null,"",null,null,null,null,"","",null,null,null,null,"",null,null,null,null,"","",null,null,null,null,"",null,null,null,null,"","",null,null,null,null,"",null,null,null,null,"",null,null,null,null,"",null,null,null,null,"",null,null,null,null,"",null,null,null,null,"","","","",null,null,null,null,"",null,null,null,null,"","",null,null,null,null,"",null,null,null,null,"","",null,null,null,null,"",null,null,null,null,"","",null,null,null,null,"",null,null,null,null,"","","","","",null,null,null,null,"",null,null,null,null,"","",null,null,null,null,"",null,null,null,null,"","",null,null,null,null,"",null,null,null,null,"",""]
[6,null,null,null,null,null,"",null,null,null,null,"","",null,null,null,null,"",null,null,null,null,"","",null,null,null,null,"",null,null,null,null,"","",null,null,null,null,"",null,null,null,null,"","",null,null,null,null,"",null,null,null,null,"",null,null,null,null,"",null,null,null,null,"",null,null,null,null,"",null,null,null,null,"","","","",null,null,null,null,"",null,null,null,null,"","",null,null,null,null,"",null,null,null,null,"","",null,null,null,null,"",null,null,null,null,"","",null,null,null,null,"",null,null,null,null,"","","","","",null,null,null,null,"",null,null,null,null,"","",null,null,null,null,"",null,null,null,null,"","",null,null,null,null,"",null,null,null,null,"",""]
[7,null,null,null,null,null,"",null,null,null,null,"","",null,null,null,null,"",null,null,null,null,"","",null,null,null,null,"",null,null,null,null,"","",null,null,null,null,"",null,null,null,null,"","",null,null,null,null,"",null,null,null,null,"",null,null,null,null,"",null,null,null,null,"",null,null,null,null,"",null,null,null,null,"","","","",null,null,null,null,"",null,null,null,null,"","",null,null,null,null,"",null,null,null,null,"","",null,null,null,null,"",null,null,null,null,"","",null,null,null,null,"",null,null,null,null,"","","","","",null,null,null,null,"",null,null,null,null,"","",null,null,null,null,"",null,null,null,null,"","",null,null,null,null,"",null,null,null,null,"",""]
[8,null,null,null,null,null,"",null,null,null,null,"","",null,null,null,null,"",null,null,null,null,"","",null,null,null,null,"",null,null,null,null,"","",null,null,null,null,"",null,null,null,null,"","",null,null,null,null,"",null,null,null,null,"",null,null,null,null,"",null,null,null,null,"",null,null,null,null,"",null,null,null,null,"","","","",null,null,null,null,"",null,null,null,null,"","",null,null,null,null,"",null,null,null,null,"","",null,null,null,null,"",null,null,null,null,"","",null,null,null,null,"",null,null,null,null,"","","","","",null,null,null,null,"",null,null,null,null,"","",null,null,null,null,"",null,null,null,null,"","",null,null,null,null,"",null,null,null,null,"",""]
[9,null,null,null,null,null,"",null,null,null,null,"","",null,null,null,null,"",null,null,null,null,"","",null,null,null,null,"",null,null,null,null,"","",null,null,null,null,"",null,null,null,null,"","",null,null,null,null,"",null,null,null,null,"",null,null,null,null,"",null,null,null,null,"",null,null,null,null,"",null,null,null,null,"","","","",null,null,null,null,"",null,null,null,null,"","",null,null,null,null,"",null,null,null,null,"","",null,null,null,null,"",null,null,null,null,"","",null,null,null,null,"",null,null,null,null,"","","","","",null,null,null,null,"",null,null,null,null,"","",null,null,null,null,"",null,null,null,null,"","",null,null,null,null,"",null,null,null,null,"",""]
[10,null,null,null,null,null,"",null,null,null,null,"","",null,null,null,null,"",null,null,null,null,"","",null,null,null,null,"",null,null,null,null,"","",null,null,null,null,"",null,null,null,null,"","",null,null,null,null,"",null,null,null,null,"",null,null,null,null,"",null,null,null,null,"",null,null,null,null,"",null,null,null,null,"","","","",null,null,null,null,"",null,null,null,null,"","",null,null,null,null,"",null,null,null,null,"","",null,null,null,null,"",null,null,null,null,"","",null,null,null,null,"",null,null,null,null,"","","","","",null,null,null,null,"",null,null,null,null,"","",null,null,null,null,"",null,null,null,null,"","",null,null,null,null,"",null,null,null,null,"",""]
[11,null,null,null,null,null,"",null,null,null,null,"","",null,null,null,null,"",null,null,null,null,"","",null,null,null,null,"",null,null,null,null,"","",null,null,null,null,"",null,null,null,null,"","",null,null,null,null,"",null,null,null,null,"",null,null,null,null,"",null,null,null,null,"",null,null,null,null,"",null,null,null,null,"","","","",null,null,null,null,"",null,null,null,null,"","",null,null,null,null,"",null,null,null,null,"","",null,null,null,null,"",null,null,null,null,"","",null,null,null,null,"",null,null,null,null,"","","","","",null,null,null,null,"",null,null,null,null,"","",null,null,null,null,"",null,null,null,null,"","",null,null,null,null,"",null,null,null,null,"",""]
[12,null,null,null,null,null,"",null,null,null,null,"","",null,null,null,null,"",null,null,null,null,"","",null,null,null,null,"",null,null,null,null,"","",null,null,null,null,"",null,null,null,null,"","",null,null,null,null,"",null,null,null,null,"",null,null,null,null,"",null,null,null,null,"",null,null,null,null,"",null,null,null,null,"","","","",null,null,null,null,"",null,null,null,null,"","",null,null,null,null,"",null,null,null,null,"","",null,null,null,null,"",null,null,null,null,"","",null,null,null,null,"",null,null,null,null,"","","","","",null,null,null,null,"",null,null,null,null,"","",null,null,null,null,"",null,null,null,null,"","",null,null,null,null,"",null,null,null,null,"",""]
[13,null,null,null,null,null,"",null,null,null,null,"","",null,null,null,null,"",null,null,null,null,"","",null,null,null,null,"",null,null,null,null,"","",null,null,null,null,"",null,null,null,null,"","",null,null,null,null,"",null,null,null,null,"",null,null,null,null,"",null,null,null,null,"",null,null,null,null,"",null,null,null,null,"","","","",null,null,null,null,"",null,null,null,null,"","",null,null,null,null,"",null,null,null,null,"","",null,null,null,null,"",null,null,null,null,"","",null,null,null,null,"",null,null,null,null,"","","","","",null,null,null,null,"",null,null,null,null,"","",null,null,null,null,"",null,null,null,null,"","",null,null,null,null,"",null,null,null,null,"",""]
[14,null,null,null,null,null,"",null,null,null,null,"","",null,null,null,null,"",null,null,null,null,"","",null,null,null,null,"",null,null,null,null,"","",null,null,null,null,"",null,null,null,null,"","",null,null,null,null,"",null,null,null,null,"",null,null,null,null,"",null,null,null,null,"",null,null,null,null,"",null,null,null,null,"","","","",null,null,null,null,"",null,null,null,null,"","",null,null,null,null,"",null,null,null,null,"","",null,null,null,null,"",null,null,null,null,"","",null,null,null,null,"",null,null,null,null,"","","","","",null,null,null,null,"",null,null,null,null,"","",null,null,null,null,"",null,null,null,null,"","",null,null,null,null,"",null,null,null,null,"",""]
[15,null,null,null,null,null,"",null,null,null,null,"","",null,null,null,null,"",null,null,null,null,"","",null,null,null,null,"",null,null,null,null,"","",null,null,null,null,"",null,null,null,null,"","",null,null,null,null,"",null,null,null,null,"",null,null,null,null,"",null,null,null,null,"",null,null,null,null,"",null,null,null,null,"","","","",null,null,null,null,"",null,null,null,null,"","",null,null,null,null,"",null,null,null,null,"","",null,null,null,null,"",null,null,null,null,"","",null,null,null,null,"",null,null,null,null,"","","","","",null,null,null,null,"",null,null,null,null,"","",null,null,null,null,"",null,null,null,null,"","",null,null,null,null,"",null,null,null,null,"",""]
[16,null,null,null,null,null,"",null,null,null,null,"","",null,null,null,null,"",null,null,null,null,"","",null,null,null,null,"",null,null,null,null,"","",null,null,null,null,"",null,null,null,null,"","",null,null,null,null,"",null,null,null,null,"",null,null,null,null,"",null,null,null,null,"",null,null,null,null,"",null,null,null,null,"","","","",null,null,null,null,"",null,null,null,null,"","",null,null,null,null,"",null,null,null,null,"","",null,null,null,null,"",null,null,null,null,"","",null,null,null,null,"",null,null,null,null,"","","","","",null,null,null,null,"",null,null,null,null,"","",null,null,null,null,"",null,null,null,null,"","",null,null,null,null,"",null,null,null,null,"",""]
[17,null,null,null,null,null,"",null,null,null,null,"","",null,null,null,null,"",null,null,null,null,"","",null,null,null,null,"",null,null,null,null,"","",null,null,null,null,"",null,null,null,null,"","",null,null,null,null,"",null,null,null,null,"",null,null,null,null,"",null,null,null,null,"",null,null,null,null,"",null,null,null,null,"","","","",null,null,null,null,"",null,null,null,null,"","",null,null,null,null,"",null,null,null,null,"","",null,null,null,null,"",null,null,null,null,"","",null,null,null,null,"",null,null,null,null,"","","","","",null,null,null,null,"",null,null,null,null,"","",null,null,null,null,"",null,null,null,null,"","",null,null,null,null,"",null,null,null,null,"",""]
[18,null,null,null,null,null,"",null,null,null,null,"","",null,null,null,null,"",null,null,null,null,"","",null,null,null,null,"",null,null,null,null,"","",null,null,null,null,"",null,null,null,null,"","",null,null,null,null,"",null,null,null,null,"",null,null,null,null,"",null,null,null,null,"",null,null,null,null,"",null,null,null,null,"","","","",null,null,null,null,"",null,null,null,null,"","",null,null,null,null,"",null,null,null,null,"","",null,null,null,null,"",null,null,null,null,"","",null,null,null,null,"",null,null,null,null,"","","","","",null,null,null,null,"",null,null,null,null,"","",null,null,null,null,"",null,null,null,null,"","",null,null,null,null,"",null,null,null,null,"",""]
[19,null,null,null,null,null,"",null,null,null,null,"","",null,null,null,null,"",null,null,null,null,"","",null,null,null,null,"",null,null,null,null,"","",null,null,null,null,"",null,null,null,null,"","",null,null,null,null,"",null,null,null,null,"",null,null,null,null,"",null,null,null,null,"",null,null,null,null,"",null,null,null,null,"","","","",null,null,null,null,"",null,null,null,null,"","",null,null,null,null,"",null,null,null,null,"","",null,null,null,null,"",null,null,null,null,"","",null,null,null,null,"",null,null,null,null,"","","","","",null,null,null,null,"",null,null,null,null,"","",null,null,null,null,"",null,null,null,null,"","",null,null,null,null,"",null,null,null,null,"",""]
[20,null,null,null,null,null,"",null,null,null,null,"","",null,null,null,null,"",null,null,null,null,"","",null,null,null,null,"",null,null,null,null,"","",null,null,null,null,"",null,null,null,null,"","",null,null,null,null,"",null,null,null,null,"",null,null,null,null,"",null,null,null,null,"",null,null,null,null,"",null,null,null,null,"","","","",null,null,null,null,"",null,null,null,null,"","",null,null,null,null,"",null,null,null,null,"","",null,null,null,null,"",null,null,null,null,"","",null,null,null,null,"",null,null,null,null,"","","","","",null,null,null,null,"",null,null,null,null,"","",null,null,null,null,"",null,null,null,null,"","",null,null,null,null,"",null,null,null,null,"",""]
[21,null,null,null,null,null,"",null,null,null,null,"","",null,null,null,null,"",null,null,null,null,"","",null,null,null,null,"",null,null,null,null,"","",null,null,null,null,"",null,null,null,null,"","",null,null,null,null,"",null,null,null,null,"",null,null,null,null,"",null,null,null,null,"",null,null,null,null,"",null,null,null,null,"","","","",null,null,null,null,"",null,null,null,null,"","",null,null,null,null,"",null,null,null,null,"","",null,null,null,null,"",null,null,null,null,"","",null,null,null,null,"",null,null,null,null,"","","","","",null,null,null,null,"",null,null,null,null,"","",null,null,null,null,"",null,null,null,null,"","",null,null,null,null,"",null,null,null,null,"",""]
[22,null,null,null,null,null,"",null,null,null,null,"","",null,null,null,null,"",null,null,null,null,"","",null,null,null,null,"",null,null,null,null,"","",null,null,null,null,"",null,null,null,null,"","",null,null,null,null,"",null,null,null,null,"",null,null,null,null,"",null,null,null,null,"",null,null,null,null,"",null,null,null,null,"","","","",null,null,null,null,"",null,null,null,null,"","",null,null,null,null,"",null,null,null,null,"","",null,null,null,null,"",null,null,null,null,"","",null,null,null,null,"",null,null,null,null,"","","","","",null,null,null,null,"",null,null,null,null,"","",null,null,null,null,"",null,null,null,null,"","",null,null,null,null,"",null,null,null,null,"",""]
[23,null,null,null,null,null,"",null,null,null,null,"","",null,null,null,null,"",null,null,null,null,"","",null,null,null,null,"",null,null,null,null,"","",null,null,null,null,"",null,null,null,null,"","",null,null,null,null,"",null,null,null,null,"",null,null,null,null,"",null,null,null,null,"",null,null,null,null,"",null,null,null,null,"","","","",null,null,null,null,"",null,null,null,null,"","",null,null,null,null,"",null,null,null,null,"","",null,null,null,null,"",null,null,null,null,"","",null,null,null,null,"",null,null,null,null,"","","","","",null,null,null,null,"",null,null,null,null,"","",null,null,null,null,"",null,null,null,null,"","",null,null,null,null,"",null,null,null,null,"",""]
[24,null,null,null,null,null,"",null,null,null,null,"","",null,null,null,null,"",null,null,null,null,"","",null,null,null,null,"",null,null,null,null,"","",null,null,null,null,"",null,null,null,null,"","",null,null,null,null,"",null,null,null,null,"",null,null,null,null,"",null,null,null,null,"",null,null,null,null,"",null,null,null,null,"","","","",null,null,null,null,"",null,null,null,null,"","",null,null,null,null,"",null,null,null,null,"","",null,null,null,null,"",null,null,null,null,"","",null,null,null,null,"",null,null,null,null,"","","","","",null,null,null,null,"",null,null,null,null,"","",null,null,null,null,"",null,null,null,null,"","",null,null,null,null,"",null,null,null,null,"",""]
[25,null,null,null,null,null,"",null,null,null,null,"","",null,null,null,null,"",null,null,null,null,"","",null,null,null,null,"",null,null,null,null,"","",null,null,null,null,"",null,null,null,null,"","",null,null,null,null,"",null,null,null,null,"",null,null,null,null,"",null,null,null,null,"",null,null,null,null,"",null,null,null,null,"","","","",null,null,null,null,"",null,null,null,null,"","",null,null,null,null,"",null,null,null,null,"","",null,null,null,null,"",null,null,null,null,"","",null,null,null,null,"",null,null,null,null,"","","","","",null,null,null,null,"",null,null,null,null,"","",null,null,null,null,"",null,null,null,null,"","",null,null,null,null,"",null,null,null,null,"",""]
[26,null,null,null,null,null,"",null,null,null,null,"","",null,null,null,null,"",null,null,null,null,"","",null,null,null,null,"",null,null,null,null,"","",null,null,null,null,"",null,null,null,null,"","",null,null,null,null,"",null,null,null,null,"",null,null,null,null,"",null,null,null,null,"",null,null,null,null,"",null,null,null,null,"","","","",null,null,null,null,"",null,null,null,null,"","",null,null,null,null,"",null,null,null,null,"","",null,null,null,null,"",null,null,null,null,"","",null,null,null,null,"",null,null,null,null,"","","","","",null,null,null,null,"",null,null,null,null,"","",null,null,null,null,"",null,null,null,null,"","",null,null,null,null,"",null,null,null,null,"",""]
[27,null,null,null,null,null,"",null,null,null,null,"","",null,null,null,null,"",null,null,null,null,"","",null,null,null,null,"",null,null,null,null,"","",null,null,null,null,"",null,null,null,null,"","",null,null,null,null,"",null,null,null,null,"",null,null,null,null,"",null,null,null,null,"",null,null,null,null,"",null,null,null,null,"","","","",null,null,null,null,"",null,null,null,null,"","",null,null,null,null,"",null,null,null,null,"","",null,null,null,null,"",null,null,null,null,"","",null,null,null,null,"",null,null,null,null,"","","","","",null,null,null,null,"",null,null,null,null,"","",null,null,null,null,"",null,null,null,null,"","",null,null,null,null,"",null,null,null,null,"",""]
[28,null,null,null,null,null,"",null,null,null,null,"","",null,null,null,null,"",null,null,null,null,"","",null,null,null,null,"",null,null,null,null,"","",null,null,null,null,"",null,null,null,null,"","",null,null,null,null,"",null,null,null,null,"",null,null,null,null,"",null,null,null,null,"",null,null,null,null,"",null,null,null,null,"","","","",null,null,null,null,"",null,null,null,null,"","",null,null,null,null,"",null,null,null,null,"","",null,null,null,null,"",null,null,null,null,"","",null,null,null,null,"",null,null,null,null,"","","","","",null,null,null,null,"",null,null,null,null,"","",null,null,null,null,"",null,null,null,null,"","",null,null,null,null,"",null,null,null,null,"",""]
[29,null,null,null,null,null,"",null,null,null,null,"","",null,null,null,null,"",null,null,null,null,"","",null,null,null,null,"",null,null,null,null,"","",null,null,null,null,"",null,null,null,null,"","",null,null,null,null,"",null,null,null,null,"",null,null,null,null,"",null,null,null,null,"",null,null,null,null,"",null,null,null,null,"","","","",null,null,null,null,"",null,null,null,null,"","",null,null,null,null,"",null,null,null,null,"","",null,null,null,null,"",null,null,null,null,"","",null,null,null,null,"",null,null,null,null,"","","","","",null,null,null,null,"",null,null,null,null,"","",null,null,null,null,"",null,null,null,null,"","",null,null,null,null,"",null,null,null,null,"",""]
[30,null,null,null,null,null,"",null,null,null,null,"","",null,null,null,null,"",null,null,null,null,"","",null,null,null,null,"",null,null,null,null,"","",null,null,null,null,"",null,null,null,null,"","",null,null,null,null,"",null,null,null,null,"",null,null,null,null,"",null,null,null,null,"",null,null,null,null,"",null,null,null,null,"","","","",null,null,null,null,"",null,null,null,null,"","",null,null,null,null,"",null,null,null,null,"","",null,null,null,null,"",null,null,null,null,"","",null,null,null,null,"",null,null,null,null,"","","","","",null,null,null,null,"",null,null,null,null,"","",null,null,null,null,"",null,null,null,null,"","",null,null,null,null,"",null,null,null,null,"",""]
[31,null,null,null,null,null,"",null,null,null,null,"","",null,null,null,null,"",null,null,null,null,"","",null,null,null,null,"",null,null,null,null,"","",null,null,null,null,"",null,null,null,null,"","",null,null,null,null,"",null,null,null,null,"",null,null,null,null,"",null,null,null,null,"",null,null,null,null,"",null,null,null,null,"","","","",null,null,null,null,"",null,null,null,null,"","",null,null,null,null,"",null,null,null,null,"","",null,null,null,null,"",null,null,null,null,"","",null,null,null,null,"",null,null,null,null,"","","","","",null,null,null,null,"",null,null,null,null,"","",null,null,null,null,"",null,null,null,null,"","",null,null,null,null,"",null,null,null,null,"",""]
[32,null,null,null,null,null,"",null,null,null,null,"","",null,null,null,null,"",null,null,null,null,"","",null,null,null,null,"",null,null,null,null,"","",null,null,null,null,"",null,null,null,null,"","",null,null,null,null,"",null,null,null,null,"",null,null,null,null,"",null,null,null,null,"",null,null,null,null,"",null,null,null,null,"","","","",null,null,null,null,"",null,null,null,null,"","",null,null,null,null,"",null,null,null,null,"","",null,null,null,null,"",null,null,null,null,"","",null,null,null,null,"",null,null,null,null,"","","","","",null,null,null,null,"",null,null,null,null,"","",null,null,null,null,"",null,null,null,null,"","",null,null,null,null,"",null,null,null,null,"",""]
[33,null,null,null,null,null,"",null,null,null,null,"","",null,null,null,null,"",null,null,null,null,"","",null,null,null,null,{"$f":"IF(COUNT(Y41:AB41)>3,SUM(Y41:AB41),\"\")","v":""},null,null,null,null,{"$f":"IF(COUNT(AD41:AG41)>3,SUM(AD41:AG41),\"\")","v":""},{"$f":"IF(COUNT(AC41,AH41)>1,ROUND((AC41+AH41)/2,0),\"\")","v":""},null,null,null,null,{"$f":"IF(COUNT(AJ41:AM41)>3,SUM(AJ41:AM41),\"\")","v":""},null,null,null,null,{"$f":"IF(COUNT(AO41:AR41)>3,SUM(AO41:AR41),\"\")","v":""},{"$f":"IF(COUNT(AN41,AS41)>1,ROUND((AN41+AS41)/2,0),\"\")","v":""},null,null,null,null,"",null,null,null,null,"",null,null,null,null,"",null,null,null,null,"",null,null,null,null,"",null,null,null,null,"","","","",null,null,null,null,"",null,null,null,null,"","",null,null,null,null,"",null,null,null,null,"","",null,null,null,null,"",null,null,null,null,"","",null,null,null,null,"",null,null,null,null,"","","","","",null,null,null,null,{"$f":"IF(COUNT(DW41:DZ41)>3,SUM(DW41:DZ41),\"\")","v":""},null,null,null,null,{"$f":"IF(COUNT(EB41:EE41)>3,SUM(EB41:EE41),\"\")","v":""},{"$f":"IF(COUNT(EA41,EF41)>1,ROUND((EA41+EF41)/2,0),\"\")","v":""},null,null,null,null,{"$f":"IF(COUNT(EH41:EK41)>3,SUM(EH41:EK41),\"\")","v":""},null,null,null,null,{"$f":"IF(COUNT(EM41:EP41)>3,SUM(EM41:EP41),\"\")","v":""},{"$f":"IF(COUNT(EL41,EQ41)>1,ROUND((EL41+EQ41)/2,0),\"\")","v":""},null,null,null,null,"",null,null,null,null,"",""]
[34,null,null,null,null,null,"",null,null,null,null,"","",null,null,null,null,"",null,null,null,null,"","",null,null,null,null,"",null,null,null,null,"","",null,null,null,null,"",null,null,null,null,"","",null,null,null,null,"",null,null,null,null,"",null,null,null,null,"",null,null,null,null,"",null,null,null,null,"",null,null,null,null,"","","","",null,null,null,null,"",null,null,null,null,"","",null,null,null,null,"",null,null,null,null,"","",null,null,null,null,"",null,null,null,null,"","",null,null,null,null,"",null,null,null,null,"","","","","",null,null,null,null,"",null,null,null,null,"","",null,null,null,null,"",null,null,null,null,"","",null,null,null,null,"",null,null,null,null,"",""]
[35,null,null,null,null,null,"",null,null,null,null,"","",null,null,null,null,"",null,null,null,null,"","",null,null,null,null,"",null,null,null,null,"","",null,null,null,null,"",null,null,null,null,"","",null,null,null,null,"",null,null,null,null,"",null,null,null,null,"",null,null,null,null,"",null,null,null,null,"",null,null,null,null,"","","","",null,null,null,null,"",null,null,null,null,"","",null,null,null,null,"",null,null,null,null,"","",null,null,null,null,"",null,null,null,null,"","",null,null,null,null,"",null,null,null,null,"","","","","",null,null,null,null,"",null,null,null,null,"","",null,null,null,null,"",null,null,null,null,"","",null,null,null,null,"",null,null,null,null,"",""]
[36,null,null,null,null,null,"",null,null,null,null,"","",null,null,null,null,"",null,null,null,null,"","",null,null,null,null,"",null,null,null,null,"","",null,null,null,null,"",null,null,null,null,"","",null,null,null,null,"",null,null,null,null,"",null,null,null,null,"",null,null,null,null,"",null,null,null,null,"",null,null,null,null,"","","","",null,null,null,null,"",null,null,null,null,"","",null,null,null,null,"",null,null,null,null,"","",null,null,null,null,"",null,null,null,null,"","",null,null,null,null,"",null,null,null,null,"","","","","",null,null,null,null,"",null,null,null,null,"","",null,null,null,null,"",null,null,null,null,"","",null,null,null,null,"",null,null,null,null,"",""]
[37,null,null,null,null,null,"",null,null,null,null,"","",null,null,null,null,"",null,null,null,null,"","",null,null,null,null,"",null,null,null,null,"","",null,null,null,null,"",null,null,null,null,"","",null,null,null,null,"",null,null,null,null,"",null,null,null,null,"",null,null,null,null,"",null,null,null,null,"",null,null,null,null,"","","","",null,null,null,null,"",null,null,null,null,"","",null,null,null,null,"",null,null,null,null,"","",null,null,null,null,"",null,null,null,null,"","",null,null,null,null,"",null,null,null,null,"","","","","",null,null,null,null,"",null,null,null,null,"","",null,null,null,null,"",null,null,null,null,"","",null,null,null,null,"",null,null,null,null,"",""]
[38,null,null,null,null,null,"",null,null,null,null,"","",null,null,null,null,"",null,null,null,null,"","",null,null,null,null,"",null,null,null,null,"","",null,null,null,null,"",null,null,null,null,"","",null,null,null,null,"",null,null,null,null,"",null,null,null,null,"",null,null,null,null,"",null,null,null,null,"",null,null,null,null,"","","","",null,null,null,null,"",null,null,null,null,"","",null,null,null,null,"",null,null,null,null,"","",null,null,null,null,"",null,null,null,null,"","",null,null,null,null,"",null,null,null,null,"","","","","",null,null,null,null,"",null,null,null,null,"","",null,null,null,null,"",null,null,null,null,"","",null,null,null,null,"",null,null,null,null,"",""]
[39,null,null,null,null,null,"",null,null,null,null,"","",null,null,null,null,"",null,null,null,null,"","",null,null,null,null,"",null,null,null,null,"","",null,null,null,null,"",null,null,null,null,"","",null,null,null,null,"",null,null,null,null,"",null,null,null,null,"",null,null,null,null,"",null,null,null,null,"",null,null,null,null,"","","","",null,null,null,null,"",null,null,null,null,"","",null,null,null,null,"",null,null,null,null,"","",null,null,null,null,"",null,null,null,null,"","",null,null,null,null,"",null,null,null,null,"","","","","",null,null,null,null,"",null,null,null,null,"","",null,null,null,null,"",null,null,null,null,"","",null,null,null,null,"",null,null,null,null,"",""]
[40,null,null,null,null,null,"",null,null,null,null,"","",null,null,null,null,"",null,null,null,null,"","",null,null,null,null,"",null,null,null,null,"","",null,null,null,null,"",null,null,null,null,"","",null,null,null,null,"",null,null,null,null,"",null,null,null,null,"",null,null,null,null,"",null,null,null,null,"",null,null,null,null,"","","","",null,null,null,null,"",null,null,null,null,"","",null,null,null,null,"",null,null,null,null,"","",null,null,null,null,"",null,null,null,null,"","",null,null,null,null,"",null,null,null,null,"","","","","",null,null,null,null,"",null,null,null,null,"","",null,null,null,null,"",null,null,null,null,"","",null,null,null,null,"",null,null,null,null,"",""]
[41,null,null,null,null,null,"",null,null,null,null,"","",null,null,null,null,"",null,null,null,null,"","",null,null,null,null,"",null,null,null,null,"","",null,null,null,null,"",null,null,null,null,"","",null,null,null,null,"",null,null,null,null,"",null,null,null,null,"",null,null,null,null,"",null,null,null,null,"",null,null,null,null,"","","","",null,null,null,null,"",null,null,null,null,"","",null,null,null,null,"",null,null,null,null,"","",null,null,null,null,"",null,null,null,null,"","",null,null,null,null,"",null,null,null,null,"","","","","",null,null,null,null,"",null,null,null,null,"","",null,null,null,null,"",null,null,null,null,"","",null,null,null,null,"",null,null,null,null,"",""]
[42,null,null,null,null,null,"",null,null,null,null,"","",null,null,null,null,"",null,null,null,null,"","",null,null,null,null,"",null,null,null,null,"","",null,null,null,null,"",null,null,null,null,"","",null,null,null,null,"",null,null,null,null,"",null,null,null,null,"",null,null,null,null,"",null,null,null,null,"",null,null,null,null,"","","","",null,null,null,null,"",null,null,null,null,"","",null,null,null,null,"",null,null,null,null,"","",null,null,null,null,"",null,null,null,null,"","",null,null,null,null,"",null,null,null,null,"","","","","",null,null,null,null,"",null,null,null,null,"","",null,null,null,null,"",null,null,null,null,"","",null,null,null,null,"",null,null,null,null,"",""]
[43,null,null,null,null,null,"",null,null,null,null,"","",null,null,null,null,"",null,null,null,null,"","",null,null,null,null,"",null,null,null,null,"","",null,null,null,null,"",null,null,null,null,"","",null,null,null,null,"",null,null,null,null,"",null,null,null,null,"",null,null,null,null,"",null,null,null,null,"",null,null,null,null,"","","","",null,null,null,null,"",null,null,null,null,"","",null,null,null,null,"",null,null,null,null,"","",null,null,null,null,"",null,null,null,null,"","",null,null,null,null,"",null,null,null,null,"","","","","",null,null,null,null,"",null,null,null,null,"","",null,null,null,null,"",null,null,null,null,"","",null,null,null,null,"",null,null,null,null,"",""]
[44,null,null,null,null,null,"",null,null,null,null,"","",null,null,null,null,"",null,null,null,null,"","",null,null,null,null,"",null,null,null,null,"","",null,null,null,null,"",null,null,null,null,"","",null,null,null,null,"",null,null,null,null,"",null,null,null,null,"",null,null,null,null,"",null,null,null,null,"",null,null,null,null,"","","","",null,null,null,null,"",null,null,null,null,"","",null,null,null,null,"",null,null,null,null,"","",null,null,null,null,"",null,null,null,null,"","",null,null,null,null,"",null,null,null,null,"","","","","",null,null,null,null,"",null,null,null,null,"","",null,null,null,null,"",null,null,null,null,"","",null,null,null,null,"",null,null,null,null,"",""]
[45,null,null,null,null,null,"",null,null,null,null,"","",null,null,null,null,"",null,null,null,null,"","",null,null,null,null,"",null,null,null,null,"","",null,null,null,null,"",null,null,null,null,"","",null,null,null,null,"",null,null,null,null,"",null,null,null,null,"",null,null,null,null,"",null,null,null,null,"",null,null,null,null,"","","","",null,null,null,null,"",null,null,null,null,"","",null,null,null,null,"",null,null,null,null,"","",null,null,null,null,"",null,null,null,null,"","",null,null,null,null,"",null,null,null,null,"","","","","",null,null,null,null,"",null,null,null,null,"","",null,null,null,null,"",null,null,null,null,"","",null,null,null,null,"",null,null,null,null,"",""]
[46,null,null,null,null,null,"",null,null,null,null,"","",null,null,null,null,"",null,null,null,null,"","",null,null,null,null,"",null,null,null,null,"","",null,null,null,null,"",null,null,null,null,"","",null,null,null,null,"",null,null,null,null,"",null,null,null,null,"",null,null,null,null,"",null,null,null,null,"",null,null,null,null,"","","","",null,null,null,null,"",null,null,null,null,"","",null,null,null,null,"",null,null,null,null,"","",null,null,null,null,"",null,null,null,null,"","",null,null,null,null,"",null,null,null,null,"","","","","",null,null,null,null,"",null,null,null,null,"","",null,null,null,null,"",null,null,null,null,"","",null,null,null,null,"",null,null,null,null,"",""]
[47,null,null,null,null,null,"",null,null,null,null,"","",null,null,null,null,"",null,null,null,null,"","",null,null,null,null,"",null,null,null,null,"","",null,null,null,null,"",null,null,null,null,"","",null,null,null,null,"",null,null,null,null,"",null,null,null,null,"",null,null,null,null,"",null,null,null,null,"",null,null,null,null,"","","","",null,null,null,null,"",null,null,null,null,"","",null,null,null,null,"",null,null,null,null,"","",null,null,null,null,"",null,null,null,null,"","",null,null,null,null,"",null,null,null,null,"","","","","",null,null,null,null,"",null,null,null,null,"","",null,null,null,null,"",null,null,null,null,"","",null,null,null,null,"",null,null,null,null,"",""]
[48,null,null,null,null,null,"",null,null,null,null,"","",null,null,null,null,"",null,null,null,null,"","",null,null,null,null,"",null,null,null,null,"","",null,null,null,null,"",null,null,null,null,"","",null,null,null,null,"",null,null,null,null,"",null,null,null,null,"",null,null,null,null,"",null,null,null,null,"",null,null,null,null,"","","","",null,null,null,null,"",null,null,null,null,"","",null,null,null,null,"",null,null,null,null,"","",null,null,null,null,"",null,null,null,null,"","",null,null,null,null,"",null,null,null,null,"","","","","",null,null,null,null,"",null,null,null,null,"","",null,null,null,null,"",null,null,null,null,"","",null,null,null,null,"",null,null,null,null,"",""]
[49,null,null,null,null,null,"",null,null,null,null,"","",null,null,null,null,"",null,null,null,null,"","",null,null,null,null,"",null,null,null,null,"","",null,null,null,null,"",null,null,null,null,"","",null,null,null,null,"",null,null,null,null,"",null,null,null,null,"",null,null,null,null,"",null,null,null,null,"",null,null,null,null,"","","","",null,null,null,null,"",null,null,null,null,"","",null,null,null,null,"",null,null,null,null,"","",null,null,null,null,"",null,null,null,null,"","",null,null,null,null,"",null,null,null,null,"","","","","",null,null,null,null,"",null,null,null,null,"","",null,null,null,null,"",null,null,null,null,"","",null,null,null,null,"",null,null,null,null,"",""]
[50,null,null,null,null,null,"",null,null,null,null,"","",null,null,null,null,"",null,null,null,null,"","",null,null,null,null,"",null,null,null,null,"","",null,null,null,null,"",null,null,null,null,"","",null,null,null,null,"",null,null,null,null,"",null,null,null,null,"",null,null,null,null,"",null,null,null,null,"",null,null,null,null,"","","","",null,null,null,null,"",null,null,null,null,"","",null,null,null,null,"",null,null,null,null,"","",null,null,null,null,"",null,null,null,null,"","",null,null,null,null,"",null,null,null,null,"","","","","",null,null,null,null,"",null,null,null,null,"","",null,null,null,null,"",null,null,null,null,"","",null,null,null,null,"",null,null,null,null,"",""]
[51,null,null,null,null,null,"",null,null,null,null,"","",null,null,null,null,"",null,null,null,null,"","",null,null,null,null,"",null,null,null,null,"","",null,null,null,null,"",null,null,null,null,"","",null,null,null,null,"",null,null,null,null,"",null,null,null,null,"",null,null,null,null,"",null,null,null,null,"",null,null,null,null,"","","","",null,null,null,null,"",null,null,null,null,"","",null,null,null,null,"",null,null,null,null,"","",null,null,null,null,"",null,null,null,null,"","",null,null,null,null,"",null,null,null,null,"","","","","",null,null,null,null,"",null,null,null,null,"","",null,null,null,null,"",null,null,null,null,"","",null,null,null,null,"",null,null,null,null,"",""]
[52,null,null,null,null,null,"",null,null,null,null,"","",null,null,null,null,"",null,null,null,null,"","",null,null,null,null,"",null,null,null,null,"","",null,null,null,null,"",null,null,null,null,"","",null,null,null,null,"",null,null,null,null,"",null,null,null,null,"",null,null,null,null,"",null,null,null,null,"",null,null,null,null,"","","","",null,null,null,null,"",null,null,null,null,"","",null,null,null,null,"",null,null,null,null,"","",null,null,null,null,"",null,null,null,null,"","",null,null,null,null,"",null,null,null,null,"","","","","",null,null,null,null,"",null,null,null,null,"","",null,null,null,null,"",null,null,null,null,"","",null,null,null,null,"",null,null,null,null,"",""]
[53,null,null,null,null,null,"",null,null,null,null,"","",null,null,null,null,"",null,null,null,null,"","",null,null,null,null,"",null,null,null,null,"","",null,null,null,null,"",null,null,null,null,"","",null,null,null,null,"",null,null,null,null,"",null,null,null,null,"",null,null,null,null,"",null,null,null,null,"",null,null,null,null,"","","","",null,null,null,null,"",null,null,null,null,"","",null,null,null,null,"",null,null,null,null,"","",null,null,null,null,"",null,null,null,null,"","",null,null,null,null,"",null,null,null,null,"","","","","",null,null,null,null,"",null,null,null,null,"","",null,null,null,null,"",null,null,null,null,"","",null,null,null,null,"",null,null,null,null,"",""]
[54,null,null,null,null,null,"",null,null,null,null,"","",null,null,null,null,"",null,null,null,null,"","",null,null,null,null,"",null,null,null,null,"","",null,null,null,null,"",null,null,null,null,"","",null,null,null,null,"",null,null,null,null,"",null,null,null,null,"",null,null,null,null,"",null,null,null,null,"",null,null,null,null,"","","","",null,null,null,null,"",null,null,null,null,"","",null,null,null,null,"",null,null,null,null,"","",null,null,null,null,"",null,null,null,null,"","",null,null,null,null,"",null,null,null,null,"","","","","",null,null,null,null,"",null,null,null,null,"","",null,null,null,null,"",null,null,null,null,"","",null,null,null,null,"",null,null,null,null,"",""]
[55,null,null,null,null,null,"",null,null,null,null,"","",null,null,null,null,"",null,null,null,null,"","",null,null,null,null,"",null,null,null,null,"","",null,null,null,null,"",null,null,null,null,"","",null,null,null,null,"",null,null,null,null,"",null,null,null,null,"",null,null,null,null,"",null,null,null,null,"",null,null,null,null,"","","","",null,null,null,null,"",null,null,null,null,"","",null,null,null,null,"",null,null,null,null,"","",null,null,null,null,"",null,null,null,null,"","",null,null,null,null,"",null,null,null,null,"","","","","",null,null,null,null,"",null,null,null,null,"","",null,null,null,null,"",null,null,null,null,"","",null,null,null,null,"",null,null,null,null,"",""]
[56,null,null,null,null,null,"",null,null,null,null,"","",null,null,null,null,"",null,null,null,null,"","",null,null,null,null,"",null,null,null,null,"","",null,null,null,null,"",null,null,null,null,"","",null,null,null,null,"",null,null,null,null,"",null,null,null,null,"",null,null,null,null,"",null,null,null,null,"",null,null,null,null,"","","","",null,null,null,null,"",null,null,null,null,"","",null,null,null,null,"",null,null,null,null,"","",null,null,null,null,"",null,null,null,null,"","",null,null,null,null,"",null,null,null,null,"","","","","",null,null,null,null,"",null,null,null,null,"","",null,null,null,null,"",null,null,null,null,"","",null,null,null,null,"",null,null,null,null,"",""]
[57,null,null,null,null,null,"",null,null,null,null,"","",null,null,null,null,"",null,null,null,null,"","",null,null,null,null,"",null,null,null,null,"","",null,null,null,null,"",null,null,null,null,"","",null,null,null,null,"",null,null,null,null,"",null,null,null,null,"",null,null,null,null,"",null,null,null,null,"",null,null,null,null,"","","","",null,null,null,null,"",null,null,null,null,"","",null,null,null,null,"",null,null,null,null,"","",null,null,null,null,"",null,null,null,null,"","",null,null,null,null,"",null,null,null,null,"","","","","",null,null,null,null,"",null,null,null,null,"","",null,null,null,null,"",null,null,null,null,"","",null,null,null,null,"",null,null,null,null,"",""]
[58,null,null,null,null,null,"",null,null,null,null,"","",null,null,null,null,"",null,null,null,null,"","",null,null,null,null,"",null,null,null,null,"","",null,null,null,null,"",null,null,null,null,"","",null,null,null,null,"",null,null,null,null,"",null,null,null,null,"",null,null,null,null,"",null,null,null,null,"",null,null,null,null,"","","","",null,null,null,null,"",null,null,null,null,"","",null,null,null,null,"",null,null,null,null,"","",null,null,null,null,"",null,null,null,null,"","",null,null,null,null,"",null,null,null,null,"","","","","",null,null,null,null,"",null,null,null,null,"","",null,null,null,null,"",null,null,null,null,"","",null,null,null,null,"",null,null,null,null,"",""]
[59,null,null,null,null,null,"",null,null,null,null,"","",null,null,null,null,"",null,null,null,null,"","",null,null,null,null,"",null,null,null,null,"","",null,null,null,null,"",null,null,null,null,"","",null,null,null,null,"",null,null,null,null,"",null,null,null,null,"",null,null,null,null,"",null,null,null,null,"",null,null,null,null,"","","","",null,null,null,null,"",null,null,null,null,"","",null,null,null,null,"",null,null,null,null,"","",null,null,null,null,"",null,null,null,null,"","",null,null,null,null,"",null,null,null,null,"","","","","",null,null,null,null,"",null,null,null,null,"","",null,null,null,null,"",null,null,null,null,"","",null,null,null,null,"",null,null,null,null,"",""]
[60,null,null,null,null,null,"",null,null,null,null,"","",null,null,null,null,"",null,null,null,null,"","",null,null,null,null,"",null,null,null,null,"","",null,null,null,null,"",null,null,null,null,"","",null,null,null,null,"",null,null,null,null,"",null,null,null,null,"",null,null,null,null,"",null,null,null,null,"",null,null,null,null,"","","","",null,null,null,null,"",null,null,null,null,"","",null,null,null,null,"",null,null,null,null,"","",null,null,null,null,"",null,null,null,null,"","",null,null,null,null,"",null,null,null,null,"","","","","",null,null,null,null,"",null,null,null,null,"","",null,null,null,null,"",null,null,null,null,"","",null,null,null,null,"",null,null,null,null,"",""]
[61,null,null,null,null,null,"",null,null,null,null,"","",null,null,null,null,"",null,null,null,null,"","",null,null,null,null,"",null,null,null,null,"","",null,null,null,null,"",null,null,null,null,"","",null,null,null,null,"",null,null,null,null,"",null,null,null,null,"",null,null,null,null,"",null,null,null,null,"",null,null,null,null,"","","","",null,null,null,null,"",null,null,null,null,"","",null,null,null,null,"",null,null,null,null,"","",null,null,null,null,"",null,null,null,null,"","",null,null,null,null,"",null,null,null,null,"","","","","",null,null,null,null,"",null,null,null,null,"","",null,null,null,null,"",null,null,null,null,"","",null,null,null,null,"",null,null,null,null,"",""]
[62,null,null,null,null,null,"",null,null,null,null,"","",null,null,null,null,"",null,null,null,null,"","",null,null,null,null,"",null,null,null,null,"","",null,null,null,null,"",null,null,null,null,"","",null,null,null,null,"",null,null,null,null,"",null,null,null,null,"",null,null,null,null,"",null,null,null,null,"",null,null,null,null,"","","","",null,null,null,null,"",null,null,null,null,"","",null,null,null,null,"",null,null,null,null,"","",null,null,null,null,"",null,null,null,null,"","",null,null,null,null,"",null,null,null,null,"","","","","",null,null,null,null,"",null,null,null,null,"","",null,null,null,null,"",null,null,null,null,"","",null,null,null,null,"",null,null,null,null,"",""]
[63,null,null,null,null,null,"",null,null,null,null,"","",null,null,null,null,"",null,null,null,null,"","",null,null,null,null,"",null,null,null,null,"","",null,null,null,null,"",null,null,null,null,"","",null,null,null,null,"",null,null,null,null,"",null,null,null,null,"",null,null,null,null,"",null,null,null,null,"",null,null,null,null,"","","","",null,null,null,null,"",null,null,null,null,"","",null,null,null,null,"",null,null,null,null,"","",null,null,null,null,"",null,null,null,null,"","",null,null,null,null,"",null,null,null,null,"","","","","",null,null,null,null,"",null,null,null,null,"","",null,null,null,null,"",null,null,null,null,"","",null,null,null,null,"",null,null,null,null,"",""]

{"sheet":"Moncer","index":1,"n_rows":45,"n_cols":17,"rows_kept":45,"cut":false,"hidden":false,"merged":[[4,12,4,15],[3,16,3,18],[13,4,14,8],[16,0,16,2],[15,5,15,8],[7,1,7,4],[11,6,11,8],[16,5,16,8],[11,0,11,1],[5,1,6,8],[7,6,7,8],[9,2,9,3],[11,2,11,3],[13,0,15,2],[1,5,4,6],[9,6,9,8],[29,5,29,8],[24,0,24,2],[13,3,14,3],[17,5,17,8],[18,5,18,8],[23,0,23,2],[21,0,21,2],[20,5,20,8],[17,0,17,2],[18,0,18,2],[2,0,3,3],[22,0,22,2],[27,0,27,2],[32,0,32,2],[9,0,9,1],[4,0,4,3],[25,0,25,2],[29,0,29,2],[28,0,28,2],[19,0,19,2],[20,0,20,2],[26,0,26,2],[31,0,31,2],[30,0,30,2],[34,5,34,8],[34,0,34,2],[33,5,33,8],[33,0,33,2],[19,5,19,8],[31,5,31,8],[32,5,32,8],[22,5,22,8],[23,5,23,8],[21,5,21,8],[30,5,30,8],[26,5,26,8],[27,5,27,8],[25,5,25,8],[24,5,24,8],[28,5,28,8],[35,1,36,8],[37,2,38,8],[39,7,40,8],[41,5,42,6],[39,5,40,6],[41,1,42,2],[41,4,42,4],[39,0,40,1],[41,0,42,0],[39,3,40,4],[41,7,42,8],[35,0,36,0],[37,0,38,1],[39,2,40,2]]}
[]
[]
[]
[null,null,null,null,null,null,null,null,null,null,null,null,null,true]
[]
[]
[]
["الإســـم :",null,null,null,null,null,null,null,null,null,null,"اسم الطالب "]
[]
[null,null,null,null,null,null,null,null,null,null,null,null,null,41,null,"من",0]
[]
[]
[]
["المــــادة الدراسيــــة",null,null,"النهاية","العلامــــة المستحقــــة"]
[]
[null,null,null,"العظمى","بالارقام","بالحــــروف"]
[{"$f":"'Mark All'!C5","v":"التربية الإسلامية "}]
[{"$f":"'Mark All'!N5","v":"العربية لغتي "}]
[{"$f":"'Mark All'!Y5","v":"اللغة الإنجليزية"}]
[{"$f":"'Mark All'!AJ5","v":"الرياضيات"}]
[{"$f":"'Mark All'!AU6","v":"التاريخ"}]
[{"$f":"'Mark All'!BE6","v":"الجغرافيا"}]
[{"$f":"'Mark All'!BO6","v":"التربية الوطنية و المدنية "}]
[{"$f":"'Mark All'!CB6","v":"الفيزياء"}]
[{"$f":"'Mark All'!CM6","v":"العلوم الحياتية"}]
[{"$f":"'Mark All'!CX6","v":"الكيمياء"}]
[{"$f":"'Mark All'!DI6","v":"علوم الارض و البيئة "}]
[{"$f":"'Mark All'!DW5","v":"التربية الفنية"}]
[{"$f":"'Mark All'!EH5","v":"التربية الرياضية"}]
[{"$f":"'Mark All'!ES5","v":"الحاسوب المهارات الرقمية "}]
[{"$f":"'Mark All'!FD5","v":"الثقافة المالية "}]
[{"$f":"'Mark All'!FO5","v":"اللغة الفرنسية "}]
[]
[]
[]
[]
[]
["ملحوظات:",null,""]
[]
[null,null,null,null,null,"اسم وتوقيع مربي الصف:"]
[]
["خاتم المدرسة :",null,null,null,null,"اسم وتوقيع مدير المدرسة :"]
[]
["توقيع ولي الامر:"]
[null,null," "]